bitfinex/quotes_SOLUSD_20241209
["timestamp","ask_amount","ask_price","bid_price","bid_amount"]
[1733705730682,23.776884,233.53,233.52,8.44230033]
[1733705732080,23.776884,233.53,233.51,8.44230033]
[1733705733477,23.776884,233.53,233.5,8.44230033]
[1733705733640,23.776884,233.53,233.46,0.4847409]
[1733705733844,23.776884,233.53,233.47,8.44230033]
[1733705734957,20.0,233.5,233.47,8.44230033]
[1733705735144,23.776884,233.49,233.47,8.44230033]
[1733705735764,23.776884,233.49,233.46,0.4847409]
[1733705735945,23.776884,233.49,233.46,8.92704123]
[1733705736341,23.776884,233.49,233.46,0.4847409]
[1733705736759,20.0,233.47,233.46,0.4847409]
[1733705736962,43.776884,233.47,233.46,0.4847409]
[1733705740693,52.21918433,233.47,233.46,0.4847409]
[1733705742051,43.776884,233.47,233.46,0.4847409]
[1733705742249,20.0,233.47,233.46,0.4847409]
[1733705743856,43.776884,233.47,233.46,0.4847409]
[1733705745172,52.21918433,233.47,233.46,0.4847409]
[1733705745397,43.776884,233.47,233.46,0.4847409]
[1733705748775,52.21918433,233.47,233.46,0.4847409]
[1733705754334,20.0,233.43,233.39,0.02563937]
[1733705754498,52.21918433,233.4,233.39,0.02563937]
[1733705757711,43.776884,233.4,233.39,0.02563937]
[1733705758713,52.21918433,233.4,233.39,0.02563937]
[1733705764128,20.0,233.4,233.39,0.02563937]
[1733705764438,8.44230033,233.44,233.39,0.02563937]
[1733705764798,8.44230033,233.43,233.39,0.02563937]
[1733705765022,8.44230033,233.42,233.39,0.02563937]
[1733705765831,20.0,233.4,233.39,0.02563937]
[1733705766141,43.776884,233.4,233.39,0.02563937]
[1733705766436,3.7943395,233.49,233.39,8.4679397]
[1733705766620,8.44230033,233.49,233.43,8.44230033]
[1733705766834,8.44230033,233.48,233.42,8.44230033]
[1733705767437,8.442301,233.54,233.42,8.44230033]
[1733705767742,23.776884,233.47,233.42,8.44230033]
[1733705768103,10.13022216,233.54,233.44,8.44230033]
[1733705768304,8.44230033,233.5,233.44,8.44230033]
[1733705768534,20.0,233.47,233.43,8.44230033]
[1733705769103,8.44230033,233.49,233.43,8.44230033]
[1733705769322,8.44230033,233.5,233.43,8.44230033]
[1733705769536,23.776884,233.49,233.43,8.44230033]
[1733705769935,8.44230033,233.46,233.39,0.02563937]
[1733705770106,8.44230033,233.46,233.4,8.44230033]
[1733705770306,8.44230033,233.45,233.39,8.4679397]
[1733705770730,23.776884,233.45,233.39,0.02563937]
[1733705771048,23.776884,233.44,233.39,8.4679397]
[1733705771213,23.776884,233.44,233.4,8.44230033]
[1733705771410,23.776884,233.45,233.4,8.44230033]
[1733705771727,23.776884,233.45,233.41,8.44230033]
[1733705771913,23.776884,233.46,233.41,8.44230033]
[1733705772314,32.21918433,233.46,233.4,8.44230033]
[1733705773841,23.776884,233.46,233.4,8.44230033]
[1733705775560,32.21918433,233.46,233.4,8.44230033]
[1733705777356,23.776884,233.46,233.41,8.44230033]
[1733705777558,20.0,233.52,233.43,8.44230033]
[1733705777748,1.75063162,233.55,233.45,8.44230033]
[1733705778053,8.44230033,233.51,233.45,8.44230033]
[1733705778273,8.44230033,233.5,233.44,8.1856]
[1733705778561,8.44230033,233.48,233.44,8.1856]
[1733705779745,8.44230033,233.49,233.44,8.1856]
[1733705780050,23.776884,233.48,233.44,8.1856]
[1733705780640,1.0702,233.59,233.47,8.44230033]
[1733705780842,1.47689746,233.6,233.5,8.44230033]
[1733705781158,6.80507255,233.63,233.52,1.5707]
[1733705781334,8.44230033,233.59,233.52,10.01300033]
[1733705781738,8.44230033,233.58,233.52,1.5707]
[1733705781947,6.80507255,233.63,233.52,1.5707]
[1733705782149,6.80507255,233.63,233.52,10.01300033]
[1733705782326,8.44230033,233.59,233.52,1.5707]
[1733705782532,8.44230033,233.59,233.52,10.01300033]
[1733705783762,8.44230033,233.6,233.53,8.44230033]
[1733705784067,8.44230033,233.59,233.53,8.44230033]
[1733705784251,8.44230033,233.59,233.53,14.75210033]
[1733705784621,23.776884,233.59,233.54,8.44230033]
[1733705784930,3.70755528,233.65,233.55,8.44230033]
[1733705785129,5.73507255,233.69,233.58,8.44230033]
[1733705785356,8.44230033,233.65,233.59,10.09880033]
[1733705785561,8.44230033,233.67,233.6,8.44230033]
[1733705785763,8.44230033,233.66,233.6,8.44230033]
[1733705786226,4.63712632,233.73,233.62,8.44230033]
[1733705786429,8.44230033,233.69,233.62,8.44230033]
[1733705786638,8.44230033,233.65,233.59,1.6565]
[1733705787127,8.44230033,233.61,233.59,1.6565]
[1733705787327,8.44230033,233.62,233.59,1.6565]
[1733705788125,8.44230033,233.63,233.59,1.6565]
[1733705789683,8.44230033,233.64,233.59,1.6565]
[1733705789880,23.776884,233.63,233.59,1.6565]
[1733705790264,32.21918433,233.63,233.59,1.6565]
[1733705790969,23.776884,233.63,233.59,1.6565]
[1733705791184,32.21918433,233.64,233.59,1.6565]
[1733705791494,23.776884,233.65,233.59,10.09880033]
[1733705792154,8.44230033,233.67,233.6,8.44230033]
[1733705792349,23.776884,233.66,233.6,8.44230033]
[1733705793558,23.776884,233.66,233.59,1.6565]
[1733705793559,32.21918433,233.66,233.59,10.09880033]
[1733705793792,8.44230033,233.65,233.59,1.6565]
[1733705794091,8.44230033,233.6,233.59,1.6565]
[1733705794301,23.776884,233.62,233.59,1.6565]
[1733705794464,32.21918433,233.62,233.59,1.6565]
[1733705794669,23.776884,233.62,233.59,1.6565]
[1733705794965,32.21918433,233.62,233.59,1.6565]
[1733705795363,8.44230033,233.61,233.59,1.6565]
[1733705797191,8.44230033,233.6,233.59,1.6565]
[1733705797391,32.21918433,233.6,233.59,1.6565]
[1733705798689,23.776884,233.59,233.53,7.9436]
[1733705798895,23.776884,233.59,233.53,16.38590033]
[1733705799397,23.776884,233.64,233.58,8.44230033]
[1733705799611,23.776884,233.64,233.59,8.44230033]
[1733705799796,32.21918433,233.62,233.55,8.44230033]
[1733705799985,8.44230033,233.62,233.55,8.44230033]
[1733705800313,8.44230033,233.61,233.54,8.44230033]
[1733705800625,8.44230033,233.6,233.53,16.38590033]
[1733705801408,8.44230033,233.61,233.54,8.44230033]
[1733705801716,8.44230033,233.62,233.55,8.44230033]
[1733705801922,23.776884,233.61,233.55,8.44230033]
[1733705803197,23.776884,233.61,233.54,8.44230033]
[1733705803404,32.21918433,233.61,233.54,8.44230033]
[1733705803888,23.776884,233.61,233.56,8.44230033]
[1733705804408,23.776884,233.62,233.56,8.44230033]
[1733705804591,23.776884,233.62,233.55,8.44230033]
[1733705804790,1.0697,233.71,233.6,8.44230033]
[1733705804987,8.44230033,233.69,233.62,9.97550033]
[1733705805381,6.80457255,233.75,233.62,9.97550033]
[1733705805587,8.44230033,233.68,233.62,1.5332]
[1733705806284,8.44230033,233.69,233.62,9.97550033]
[1733705807488,8.44230033,233.66,233.62,1.5332]
[1733705807710,20.0,233.63,233.62,1.5332]
[1733705809904,20.0,233.63,233.62,9.97550033]
[1733705810298,20.0,233.63,233.62,1.5332]
[1733705810498,8.44230033,233.68,233.62,1.5332]
[1733705810698,20.0,233.65,233.62,9.97550033]
[1733705810916,20.0,233.66,233.62,9.97550033]
[1733705811123,20.0,233.66,233.62,1.5332]
[1733705812453,20.0,233.64,233.62,1.5332]
[1733705813550,1.0696,233.73,233.63,8.44230033]
[1733705813751,20.0,233.67,233.63,8.44230033]
[1733705815447,20.0,233.67,233.62,9.97550033]
[1733705815951,8.44230033,233.69,233.62,9.97550033]
[1733705816137,20.0,233.66,233.62,1.5332]
[1733705818538,23.776884,233.67,233.62,1.5332]
[1733705819039,23.776884,233.68,233.62,1.5332]
[1733705820024,20.0,233.73,233.65,8.44230033]
[1733705820226,1.0695,233.74,233.66,8.44230033]
[1733705820440,8.44230033,233.73,233.66,8.44230033]
[1733705820659,1.0695,233.74,233.66,8.44230033]
[1733705820823,8.44230033,233.73,233.66,8.44230033]
[1733705821344,20.0,233.69,233.62,2.17507424]
[1733705821546,20.0,233.69,233.66,8.44230033]
[1733705821852,20.0,233.69,233.65,8.44230033]
[1733705822040,20.0,233.69,233.66,8.44230033]
[1733705822256,23.776884,233.72,233.66,8.44230033]
[1733705822927,1.0694,233.78,233.69,8.44230033]
[1733705823260,8.44230033,233.74,233.68,8.44230033]
[1733705823460,8.44230033,233.74,233.67,8.44230033]
[1733705823621,8.44230033,233.73,233.66,8.44230033]
[1733705824330,8.44230033,233.7,233.62,1.5332]
[1733705824529,8.44230033,233.69,233.63,8.44230033]
[1733705824840,8.44230033,233.7,233.64,8.44230033]
[1733705825259,32.21918433,233.69,233.62,9.97550033]
[1733705825561,8.44230033,233.68,233.62,1.5332]
[1733705826148,23.776884,233.72,233.62,1.5332]
[1733705826149,8.44230033,233.67,233.62,1.5332]
[1733705826339,23.776884,233.66,233.62,1.5332]
[1733705826525,32.21918433,233.66,233.62,1.5332]
[1733705826947,23.776884,233.66,233.62,1.5332]
[1733705827690,20.0,233.63,233.62,1.5332]
[1733705831450,1.70908332,233.73,233.53,0.64203063]
[1733705831451,2.77868332,233.73,233.57,1.5809]
[1733705831652,8.44230033,233.65,233.57,10.02320033]
[1733705831964,8.44230033,233.64,233.57,10.02320033]
[1733705833114,23.776884,233.63,233.57,10.02320033]
[1733705833453,32.21918433,233.63,233.57,1.5809]
[1733705833653,8.44230033,233.6,233.57,1.5809]
[1733705833977,20.0,233.58,233.57,1.5809]
[1733705834283,23.776884,233.61,233.57,1.5809]
[1733705834515,20.0,233.58,233.57,1.5809]
[1733705834876,20.0,233.57,233.54,6.6296]
[1733705835067,20.0,233.57,233.52,9.97980033]
[1733705835068,20.0,233.55,233.52,1.5375]
[1733705836792,20.0,233.58,233.52,1.5375]
[1733705837100,23.776884,233.57,233.52,1.5375]
[1733705839575,23.776884,233.57,233.53,8.44230033]
[1733705840014,23.776884,233.57,233.52,9.97980033]
[1733705841278,23.776884,233.53,233.52,1.5375]
[1733705844219,20.0,233.54,233.52,1.5375]
[1733705844424,23.776884,233.54,233.52,1.5375]
[1733705845698,20.0,233.55,233.52,1.5375]
[1733705845699,1.0699,233.65,233.53,8.44230033]
[1733705845899,8.44230033,233.62,233.55,8.44230033]
[1733705846410,8.44230033,233.61,233.54,8.44230033]
[1733705846822,23.776884,233.6,233.54,8.44230033]
[1733705847026,20.0,233.57,233.54,8.44230033]
[1733705849038,23.776884,233.6,233.54,8.44230033]
[1733705850323,32.21918433,233.6,233.53,8.44230033]
[1733705850750,23.776884,233.6,233.54,8.44230033]
[1733705850933,20.0,233.59,233.55,8.44230033]
[1733705851143,20.0,233.58,233.55,8.44230033]
[1733705852638,23.776884,233.61,233.55,8.44230033]
[1733705854250,23.776884,233.68,233.59,8.44230033]
[1733705854422,23.776884,233.64,233.59,8.44230033]
[1733705855252,32.21918433,233.64,233.58,8.44230033]
[1733705855933,23.776884,233.64,233.59,8.44230033]
[1733705857032,32.21918433,233.68,233.62,8.44230033]
[1733705857434,8.44230033,233.7,233.63,8.44230033]
[1733705858075,1.0694,233.77,233.67,8.44230033]
[1733705858232,8.44230033,233.74,233.68,8.44230033]
[1733705859032,8.44230033,233.73,233.67,8.44230033]
[1733705859669,20.0,233.7,233.67,8.44230033]
[1733705860467,8.44230033,233.75,233.68,8.44230033]
[1733705860766,6.80427255,233.81,233.73,8.44230033]
[1733705860767,8.44230033,233.79,233.73,8.44230033]
[1733705861068,8.44230033,233.78,233.71,8.44230033]
[1733705861242,8.44230033,233.76,233.65,1.5092]
[1733705861444,8.44230033,233.75,233.68,8.44230033]
[1733705861836,20.0,233.73,233.7,8.44230033]
[1733705862948,20.0,233.73,233.69,8.44230033]
[1733705863637,8.44230033,233.77,233.7,8.44230033]
[1733705863846,20.0,233.74,233.71,8.44230033]
[1733705864975,23.776884,233.73,233.71,8.44230033]
[1733705867350,23.776884,233.73,233.68,8.44230033]
[1733705867745,23.776884,233.73,233.67,8.44230033]
[1733705868638,23.776884,233.73,233.65,2.15094842]
[1733705868639,8.44230033,233.71,233.65,1.5092]
[1733705868834,20.0,233.74,233.65,1.5092]
[1733705868835,8.44230033,233.69,233.65,1.5092]
[1733705869082,23.776884,233.68,233.65,1.5092]
[1733705869243,23.776884,233.65,233.59,1.5692]
[1733705869443,23.776884,233.65,233.6,8.44230033]
[1733705869671,32.21918433,233.66,233.59,10.01150033]
[1733705869853,8.44230033,233.65,233.59,1.5692]
[1733705870065,32.21918433,233.63,233.59,1.5692]
[1733705871772,23.776884,233.63,233.59,1.5692]
[1733705871950,23.776884,233.63,233.62,8.44230033]
[1733705872649,23.776884,233.63,233.61,8.44230033]
[1733705872969,23.776884,233.63,233.6,8.44230033]
[1733705873345,23.776884,233.65,233.6,8.44230033]
[1733705873944,20.0,233.64,233.6,8.44230033]
[1733705874141,23.776884,233.66,233.6,8.44230033]
[1733705875340,23.776884,233.66,233.61,8.44230033]
[1733705875780,32.21918433,233.66,233.59,1.5692]
[1733705876083,32.21918433,233.66,233.6,8.44230033]
[1733705878169,23.776884,233.66,233.6,8.44230033]
[1733705878379,20.0,233.65,233.61,8.44230033]
[1733705878675,23.776884,233.67,233.61,8.44230033]
[1733705880287,32.21918433,233.67,233.6,8.44230033]
[1733705881688,23.776884,233.67,233.63,8.44230033]
[1733705881850,8.44230033,233.72,233.65,8.44230033]
[1733705882054,20.0,233.69,233.66,8.44230033]
[1733705882459,4.59996275,233.78,233.68,8.44230033]
[1733705882753,8.44230033,233.77,233.7,8.44230033]
[1733705882953,8.44230033,233.77,233.71,8.44230033]
[1733705883382,8.44230033,233.75,233.67,8.51961692]
[1733705883591,8.44230033,233.76,233.69,8.44230033]
[1733705883755,8.44230033,233.77,233.71,8.44230033]
[1733705884385,8.44230033,233.77,233.7,8.44230033]
[1733705884595,8.44230033,233.76,233.69,8.44230033]
[1733705884963,23.776884,233.75,233.69,8.44230033]
[1733705885884,20.0,233.74,233.7,8.44230033]
[1733705886097,23.776884,233.76,233.7,8.44230033]
[1733705889752,23.776884,233.77,233.71,8.44230033]
[1733705890157,23.776884,233.73,233.71,8.44230033]
[1733705891390,23.776884,233.73,233.7,8.44230033]
[1733705892384,6.80417255,233.83,233.67,8.51960911]
[1733705892385,23.776884,233.75,233.69,8.44230033]
[1733705893092,23.776884,233.75,233.7,8.44230033]
[1733705893588,23.776884,233.77,233.71,8.44230033]
[1733705893996,20.0,233.74,233.71,8.44230033]
[1733705894362,23.776884,233.73,233.69,0.64170315]
[1733705894566,23.776884,233.73,233.7,8.44230033]
[1733705894775,20.0,233.8,233.72,8.44230033]
[1733705895078,43.776884,233.79,233.73,8.44230033]
[1733705895577,23.776884,233.76,233.73,8.44230033]
[1733705895982,23.776884,233.76,233.75,8.44230033]
[1733705896586,23.776884,233.76,233.74,8.44230033]
[1733705896790,23.776884,233.76,233.72,8.44230033]
[1733705896989,23.776884,233.78,233.71,8.44230033]
[1733705897490,23.776884,233.78,233.67,7.8779]
[1733705897491,23.776884,233.78,233.74,8.44230033]
[1733705897707,8.44230033,233.81,233.74,8.44230033]
[1733705897708,23.776884,233.8,233.74,8.44230033]
[1733705898773,23.776884,233.82,233.74,8.44230033]
[1733705898972,20.0,233.79,233.76,8.44230033]
[1733705899291,23.776884,233.78,233.75,8.44230033]
[1733705900373,23.776884,233.78,233.74,8.44230033]
[1733705901002,23.776884,233.78,233.75,8.44230033]
[1733705901599,23.776884,233.78,233.74,8.44230033]
[1733705902031,1.6133233,233.87,233.77,8.44230033]
[1733705902239,8.44230033,233.88,233.81,8.44230033]
[1733705903124,146.84655468,233.96,233.83,8.44230033]
[1733705903125,1.0686,233.95,233.83,8.44230033]
[1733705903299,8.44230033,233.92,233.85,8.44230033]
[1733705903503,7.2482,233.96,233.86,8.44230033]
[1733705903828,8.44230033,233.95,233.89,8.44230033]
[1733705904000,1.0684,233.99,233.9,8.44230033]
[1733705904192,1.0684,233.99,233.91,8.44230033]
[1733705904394,8.44230033,233.98,233.92,8.44230033]
[1733705905025,7.1887,234.02,233.93,8.44230033]
[1733705905208,8.44230033,234.0,233.93,8.44230033]
[1733705905432,8.44230033,234.01,233.94,8.44230033]
[1733705905642,8.44230033,234.01,233.95,8.44230033]
[1733705906303,0.4847409,234.04,233.99,8.44230033]
[1733705906508,0.4847409,234.04,234.0,8.44230033]
[1733705906810,0.4847409,234.04,233.98,8.44230033]
[1733705906811,8.92704123,234.04,233.98,8.44230033]
[1733705906998,8.92704123,234.04,233.97,8.44230033]
[1733705907200,8.44230033,234.01,233.93,1.6434]
[1733705907409,8.44230033,234.01,233.94,8.44230033]
[1733705907611,8.44230033,234.0,233.93,10.08570033]
[1733705907812,8.44230033,233.98,233.93,1.6434]
[1733705908120,32.21918433,233.97,233.93,1.6434]
[1733705909231,23.776884,233.97,233.93,1.6434]
[1733705909801,13.16597669,233.95,233.93,1.6434]
[1733705910034,23.776884,233.94,233.93,1.6434]
[1733705911410,13.16597669,233.98,233.93,1.6434]
[1733705911717,13.16597669,234.0,233.93,15.45037312]
[1733705911911,13.16597669,233.98,233.93,2.28439643]
[1733705912113,13.16597669,233.99,233.93,2.28439643]
[1733705913009,23.776884,233.98,233.93,2.28439643]
[1733705913814,36.94286069,233.99,233.93,2.28439643]
[1733705914014,13.16597669,233.98,233.93,2.28439643]
[1733705914936,13.16597669,234.0,233.93,15.45037312]
[1733705915437,23.776884,233.99,233.93,15.45037312]
[1733705915622,13.16597669,234.0,233.85,6.2699]
[1733705915623,23.776884,233.94,233.85,6.2699]
[1733705915942,23.776884,233.91,233.86,0.64118333]
[1733705917505,13.16597669,233.94,233.86,13.80716002]
[1733705917705,20.0,233.96,233.86,0.64118333]
[1733705917706,13.16597669,233.91,233.86,0.64118333]
[1733705917906,23.776884,233.93,233.87,18.16597669]
[1733705918226,23.776884,233.93,233.88,0.64108197]
[1733705918525,0.4847409,234.04,233.89,13.16597669]
[1733705918701,13.16597669,234.01,233.93,13.16597669]
[1733705918907,13.16597669,234.01,233.94,18.80688654]
[1733705919140,13.16597669,234.02,233.94,18.80688654]
[1733705919650,13.16597669,234.02,233.95,6.5066]
[1733705919808,13.16597669,234.02,233.96,0.64087726]
[1733705920514,13.16597669,234.01,233.96,0.64087726]
[1733705920836,13.16597669,234.02,233.96,0.64087726]
[1733705921254,13.16597669,234.01,233.96,0.64087726]
[1733705921538,0.4847409,234.04,233.96,0.64087726]
[1733705921723,13.16597669,233.99,233.96,0.64087726]
[1733705921913,13.16597669,233.98,233.96,0.64087726]
[1733705922111,0.4847409,234.04,233.96,0.64087726]
[1733705922112,36.94286069,233.97,233.96,0.64087726]
[1733705922436,36.94286069,233.97,233.95,6.5066]
[1733705922627,36.94286069,233.96,233.93,0.64097419]
[1733705922843,36.94286069,233.94,233.93,0.64097419]
[1733705923039,36.94286069,233.94,233.9,0.64103891]
[1733705923930,13.16597669,234.0,233.9,0.64103891]
[1733705923931,13.16597669,233.92,233.9,0.64103891]
[1733705924117,13.16597669,234.0,233.9,0.64103891]
[1733705924118,23.776884,233.99,233.9,0.64103891]
[1733705924318,13.16597669,233.91,233.9,0.64103891]
[1733705924520,13.16597669,233.92,233.9,0.64103891]
[1733705925344,23.776884,233.99,233.9,0.64103891]
[1733705925345,13.16597669,233.93,233.9,0.64103891]
[1733705925846,13.16597669,233.94,233.9,0.64103891]
[1733705926049,36.94286069,233.93,233.9,0.64103891]
[1733705926344,13.16597669,233.93,233.9,0.64103891]
[1733705926923,23.776884,233.92,233.9,0.64103891]
[1733705927440,23.776884,233.9,233.89,7.777]
[1733705927643,36.94286069,233.9,233.89,1.5179]
[1733705927821,20.0,233.87,233.81,0.64116139]
[1733705928026,20.0,233.87,233.78,5.0]
[1733705928027,13.16597669,233.82,233.78,5.0]
[1733705928211,13.16597669,233.82,233.79,0.6413337]
[1733705928412,23.776884,233.81,233.79,0.6413337]
[1733705929031,23.776884,233.83,233.8,5.0]
[1733705929235,23.776884,233.84,233.81,0.64126805]
[1733705930142,23.776884,233.85,233.82,12.8812]
[1733705930328,13.16597669,233.87,233.83,0.64121977]
[1733705930329,23.776884,233.87,233.83,0.64121977]
[1733705930930,36.94286069,233.87,233.83,0.64121977]
[1733705932244,23.776884,233.87,233.83,0.64121977]
[1733705933446,36.94286069,233.87,233.83,0.64121977]
[1733705933655,36.94286069,233.84,233.83,0.64121977]
[1733705933821,23.776884,233.83,233.82,7.8812]
[1733705934026,36.94286069,233.83,233.82,1.5873]
[1733705934921,23.776884,233.83,233.82,1.5873]
[1733705935122,36.94286069,233.83,233.82,1.5873]
[1733705937326,36.94286069,233.83,233.77,0.64135815]
[1733705937657,13.16597669,233.79,233.77,0.64135815]
[1733705937835,13.16597669,233.78,233.76,8.0915]
[1733705938163,23.776884,233.78,233.76,8.0915]
[1733705938453,23.776884,233.79,233.76,8.0915]
[1733705939552,23.776884,233.81,233.77,0.64143409]
[1733705940739,13.16597669,233.82,233.77,5.64143409]
[1733705940740,23.776884,233.82,233.77,5.64143409]
[1733705940926,36.94286069,233.82,233.77,0.64143409]
[1733705941249,23.776884,233.8,233.77,0.64143409]
[1733705942824,23.776884,233.78,233.76,8.0915]
[1733705944643,13.16597669,233.77,233.76,1.6555]
[1733705944853,36.94286069,233.77,233.76,1.6555]
[1733705948070,23.776884,233.77,233.76,1.6555]
[1733705949072,36.94286069,233.77,233.76,1.6555]
[1733705949747,23.776884,233.76,233.71,0.64148975]
[1733705949947,13.16597669,233.75,233.71,0.64148975]
[1733705951256,23.776884,233.76,233.71,5.64148975]
[1733705951565,13.16597669,233.88,233.71,5.64148975]
[1733705951566,23.776884,233.78,233.73,13.16597669]
[1733705951770,13.16597669,233.88,233.72,5.0]
[1733705951771,36.94286069,233.79,233.74,0.64147014]
[1733705952971,36.94286069,233.77,233.74,0.64147014]
[1733705953349,13.16597669,233.77,233.74,0.64147014]
[1733705954069,13.16597669,233.78,233.74,0.64147014]
[1733705954438,23.776884,233.77,233.74,0.64147014]
[1733705955371,23.776884,233.81,233.75,18.16597669]
[1733705955585,23.776884,233.81,233.76,0.6413953]
[1733705956074,23.776884,233.82,233.76,0.6413953]
[1733705956779,13.16597669,233.85,233.78,13.16597669]
[1733705956952,13.16597669,233.85,233.79,0.64132372]
[1733705957346,13.16597669,233.84,233.79,0.64132372]
[1733705958324,13.16597669,233.87,233.8,13.16597669]
[1733705958590,13.16597669,233.88,233.81,13.80721955]
[1733705958759,13.16597669,233.87,233.81,0.64124286]
[1733705959782,13.16597669,233.83,233.81,0.64124286]
[1733705959954,13.16597669,233.82,233.79,8.0512]
[1733705960147,13.16597669,233.81,233.79,8.0512]
[1733705960674,13.16597669,233.81,233.79,1.5367]
[1733705961254,13.16597669,233.82,233.79,1.5367]
[1733705961457,23.776884,233.81,233.79,2.17806118]
[1733705962078,13.16597669,233.85,233.79,2.17806118]
[1733705962286,1.0684,233.99,233.79,15.34403787]
[1733705962287,23.776884,233.84,233.79,15.34403787]
[1733705962599,13.16597669,233.87,233.8,23.16597669]
[1733705962774,13.16597669,233.87,233.81,13.80722347]
[1733705963465,13.16597669,233.87,233.81,0.64124678]
[1733705963773,23.776884,233.86,233.81,0.64124678]
[1733705963962,36.94286069,233.86,233.81,0.64124678]
[1733705966394,13.16597669,233.86,233.81,0.64124678]
[1733705966771,13.16597669,233.89,233.82,18.16597669]
[1733705967101,13.16597669,233.89,233.83,0.64117229]
[1733705969077,22.20120444,234.0,233.84,13.16597669]
[1733705969078,20.0,233.93,233.84,13.16597669]
[1733705969280,36.94286069,233.9,233.85,0.64115766]
[1733705969895,13.16597669,233.92,233.86,13.16597669]
[1733705970197,13.16597669,233.92,233.88,1.5768]
[1733705970500,13.16597669,234.0,233.88,1.5768]
[1733705970501,13.16597669,233.94,233.89,0.64111505]
[1733705971300,0.4847409,234.04,233.89,0.64111505]
[1733705971515,13.16597669,233.95,233.89,0.64111505]
[1733705971991,23.776884,233.94,233.89,0.64111505]
[1733705972376,36.94286069,233.94,233.89,0.64111505]
[1733705973348,13.16597669,233.93,233.89,0.64111505]
[1733705974009,13.16597669,233.92,233.89,0.64111505]
[1733705974517,13.16597669,233.9,233.88,1.5768]
[1733705974812,13.16597669,233.89,233.88,1.5768]
[1733705975108,13.16597669,233.89,233.85,0.64116576]
[1733705975313,13.16597669,233.88,233.85,0.64116576]
[1733705975490,13.16597669,233.86,233.85,0.64116576]
[1733705975692,13.16597669,233.86,233.83,2.20095246]
[1733705975887,13.16597669,233.85,233.83,2.20095246]
[1733705976105,13.16597669,233.86,233.83,2.20095246]
[1733705976607,13.16597669,233.87,233.83,2.20095246]
[1733705976990,13.16597669,233.86,233.83,2.20095246]
[1733705977635,23.776884,233.94,233.83,2.20095246]
[1733705977636,13.16597669,233.87,233.83,2.20095246]
[1733705981133,23.776884,233.94,233.83,2.20095246]
[1733705981134,13.16597669,233.89,233.83,2.20095246]
[1733705981311,8.43001353,233.89,233.83,2.20095246]
[1733705981514,8.43001353,233.9,233.83,10.63096599]
[1733705981832,23.776884,233.89,233.84,8.43001353]
[1733705982012,23.776884,233.89,233.85,0.64118193]
[1733705982212,8.43001353,233.92,233.85,9.07119546]
[1733705983630,7.066,234.05,233.87,8.43001353]
[1733705983829,7.066,234.05,233.88,0.64103411]
[1733705983830,8.43001353,233.94,233.88,0.64103411]
[1733705984339,8.43001353,233.93,233.88,0.64103411]
[1733705984641,33.72005412,234.0,233.88,0.64103411]
[1733705984642,8.43001353,233.91,233.88,0.64103411]
[1733705985027,8.43001353,233.9,233.86,0.64114688]
[1733705985342,13.17055325,233.9,233.86,0.64114688]
[1733705985510,23.776884,233.99,233.86,0.64114688]
[1733705985712,13.17055325,233.92,233.86,0.64114688]
[1733705986327,13.17055325,233.92,233.86,13.81170013]
[1733705986526,13.17055325,233.93,233.86,13.81170013]
[1733705986729,23.776884,233.92,233.86,13.81170013]
[1733705987455,13.17055325,233.93,233.86,18.81170013]
[1733705987826,13.17055325,233.92,233.86,13.81170013]
[1733705988444,13.17055325,233.92,233.86,18.81170013]
[1733705988841,13.17055325,233.92,233.86,13.81170013]
[1733705991150,13.17055325,233.94,233.87,13.17055325]
[1733705991321,13.17055325,233.95,233.88,13.81158837]
[1733705991732,0.4847409,234.04,233.88,13.81158837]
[1733705991733,13.17055325,233.94,233.88,0.64103512]
[1733705992257,13.17055325,234.0,233.88,0.64103512]
[1733705992258,13.17055325,233.92,233.88,0.64103512]
[1733705992546,13.17055325,233.92,233.86,5.64112817]
[1733705992741,13.17055325,233.92,233.86,0.64112817]
[1733705993350,13.17055325,233.91,233.86,0.64112817]
[1733705993644,13.17055325,233.92,233.86,0.64112817]
[1733705993848,13.17055325,233.92,233.86,13.81168142]
[1733705994023,13.17055325,233.92,233.86,18.81168142]
[1733705994223,23.776884,233.99,233.86,18.81168142]
[1733705994224,13.17055325,233.93,233.86,18.81168142]
[1733705994733,13.17055325,233.94,233.87,13.17055325]
[1733705995049,23.776884,233.93,233.88,0.64109949]
[1733705999360,13.17055325,233.91,233.88,0.64109949]
[1733705999665,13.17055325,233.91,233.85,0.64116935]
[1733706001067,13.17055325,233.89,233.85,0.64116935]
[1733706001358,36.94743725,233.93,233.86,0.64120319]